[Event "44th Chess Olympiad Women 2022"]
[Site "Chennai"]
[Date "2022.08.09"]
[Round "11.28"]
[White "Ortiz Verdezoto, Anahi"]
[Black "Librelato, Kathie Goulart"]
[Result "0-1"]
[ECO "D31"]
[WhiteElo "2046"]
[BlackElo "2255"]
[Annotator "RC"]
[PlyCount "82"]
[EventDate "2022.07.29"]
[EventType "team-tourn"]
[EventCountry "IND"]
[SourceTitle "playchess.com"]
[Source "ChessBase"]
[SourceQuality "1"]
[WhiteTeam "Ecuador"]
[BlackTeam "Brazil"]
[WhiteTeamCountry "ECU"]
[BlackTeamCountry "BRA"]
[TimeControl "40/5400+30:1800+30"]

1. d4 {[%emt 0:00:11]} d5 {[%emt 0:00:08]} 2. c4 {[%emt 0:00:10]} e6 {[%emt 0:00:05]} 3. Nc3 {[%emt 0:00:12]} c6 {[%emt 0:00:06]} 4. cxd5 {[%emt 0:00:12]} exd5 {[%emt 0:00:06]} 5. Qc2 {[%emt 0:01:48]} Bd6 {[%emt 0:00:25]} 6. Nf3 {[%emt 0:00:22]} Ne7 {[%emt 0:00:27]} 7. e3 {[%emt 0:07:16]} Bf5 {[%emt 0:01:48]} 8. Bd3 {[%emt 0:00:30]} Bxd3 {[%emt 0:00:31]} 9. Qxd3 {[%emt 0:00:05]} Nd7 {[%emt 0:01:10]} 10. O-O {[%emt 0:05:06]} O-O {[%emt 0:00:29]} 11. e4 {[%emt 0:05:18]} dxe4 {[%emt 0:12:41]} 12. Nxe4 {[%emt 0:04:17]} Bc7 {[%emt 0:05:38]} 13. Bg5 {[%emt 0:02:21]} Re8 {[%emt 0:14:48]} 14. Qa3 {[%emt 0:11:06]} Nf8 {[%emt 0:13:54]} 15. Rfe1 {[%emt 0:13:09]} Ne6 {[%emt 0:06:30]} 16. Bh4 {[%emt 0:01:08]} Qd7 {[%emt 0:11:20]} 17. Ne5 {[%emt 0:01:44]} Qxd4 {[%emt 0:04:02]} 18. Rad1 {[%emt 0:01:38]} Qxe5 {[%emt 0:00:32]} 19. Nf6+ {[%emt 0:00:15]} gxf6 {[%emt 0:00:26]} 20. Rxe5 {[%emt 0:00:26]} Bxe5 {[%emt 0:00:16]} 21. Bg3 {[%emt 0:12:24]} Rad8 {[%emt 0:02:06]} 22. Rf1 {[%emt 0:06:32]} Rd2 {[%emt 0:05:13]} 23. Bxe5 {[%emt 0:10:49]} fxe5 {[%emt 0:00:06]} 24. Qb4 {[%emt 0:00:02]} Rd7 {[%emt 0:00:56]} 25. Qa5 {[%emt 0:00:01]} b5 {[%emt 0:02:55]} 26. Re1 {[%emt 0:01:41]} f6 {[%emt 0:06:36]} 27. h3 {[%emt 0:02:33]} Red8 {[%emt 0:00:09]} 28. Re3 {[%emt 0:00:40]} Kf7 {[%emt 0:00:25]} 29. Rc3 {[%emt 0:01:41]} Rd1+ {[%emt 0:01:46]} 30. Kh2 {[%emt 0:00:02]} R8d7 {[%emt 0:00:08]} 31. Rc2 {[%emt 0:05:22]} Nd4 {[%emt 0:00:25]} 32. Rc5 {[%emt 0:00:02]} Rd2 {[%emt 0:00:52]} 33. Rc3 {[%emt 0:03:51]} Rxf2 {[%emt 0:00:54]} 34. a4 {[%emt 0:00:05]} Nd5 {[%emt 0:01:24]} 35. axb5 {[%emt 0:01:43]} Nxc3 {[%emt 0:01:19]} 36. bxc6 {[%emt 0:00:02]} Ne4 {[%emt 0:01:31]} 37. h4 {[%emt 0:01:34]} Nxc6 {[%emt 0:01:42]} 38. Qa4 {[%emt 0:00:54]} Rdd2 {[%emt 0:01:01]} 39. Qxe4 {[%emt 0:00:09]} Rxg2+ {[%emt 0:00:12]} 40. Kh1 {[%emt 0:00:39]} Rge2 {[%emt 0:02:58]} 41. Qxh7+ {[%emt 0:31:25]} Ke6 {[%emt 0:30:14]} 0-1

[Event "44th Chess Olympiad Women 2022"]
[Site "Chennai"]
[Date "2022.08.09"]
[Round "11.28"]
[White "Miranda Vargas, Analia Karen"]
[Black "Bail, Ellen Larissa"]
[Result "1/2-1/2"]
[ECO "E06"]
[WhiteElo "1723"]
[BlackElo "1892"]
[Annotator "NA RC COMBH"]
[PlyCount "109"]
[EventDate "2022.07.29"]
[EventType "team-tourn"]
[EventCountry "IND"]
[SourceTitle "playchess.com"]
[Source "ChessBase"]
[SourceQuality "1"]
[WhiteTeam "Ecuador"]
[BlackTeam "Brazil"]
[WhiteTeamCountry "ECU"]
[BlackTeamCountry "BRA"]
[TimeControl "40/5400+30:1800+30"]

1. Nf3 {[%emt 0:00:03]} d5 {[%emt 0:00:15]} 2. c4 {[%emt 0:00:07]} e6 {[%emt 0:00:16]} 3. g3 {[%emt 0:00:08]} Nf6 {[%emt 0:00:35]} 4. Bg2 {[%emt 0:00:52]} Be7 {[%emt 0:00:37]} 5. d4 {[%emt 0:00:09]} O-O {[%emt 0:01:25]} 6. O-O {[%emt 0:00:07]} c6 {[%emt 0:03:13]} 7. Nc3 {[%emt 0:00:46]} b6 {[%emt 0:00:20]} 8. Qd3 {[%emt 0:07:12]} Na6 {[%emt 0:08:00]} 9. a3 {[%emt 0:08:40]} Nc7 {[%emt 0:07:28]} 10. Ne5 {[%emt 0:01:19]} Bb7 {[%emt 0:01:33]} 11. e4 {[%emt 0:02:10]} dxc4 {[%emt 0:03:19]} 12. Nxc4 {[%emt 0:04:34]} Ba6 {[%emt 0:16:55]} 13. Ne2 {[%emt 0:13:24]} e5 {[%emt 0:20:36]} 14. Rd1 {[%emt 0:09:17]} Ne6 {[%emt 0:01:13]} 15. b3 {[%emt 0:13:15]} exd4 {[%emt 0:01:28]} 16. e5 {[%emt 0:06:49]} Nd5 {[%emt 0:00:13]} 17. Nxd4 {[%emt 0:01:53]} Nxd4 {[%emt 0:06:08]} 18. Qxd4 {[%emt 0:00:32]} Nc3 {[%emt 0:00:52]} 19. Qxd8 {[%emt 0:04:18]} Rc8 {[%emt 0:00:34]} 20. Qxf8+ Rxf8 {[%emt 0:00:31]} 21. Rd8 {[%emt 0:03:06]} Rxd8 {[%emt 0:00:09]} 22. Bf3 {[%emt 0:03:48]} Nb5 {[%emt 0:04:36]} 23. Bb2 {[%emt 0:02:41]} Nd4 {[%emt 0:06:15]} 24. Bxd4 {[%emt 0:01:03]} Rxd4 {[%emt 0:00:07]} 25. Bxc6 {[%emt 0:00:04]} Bxc4 {[%emt 0:00:21]} 26. bxc4 {[%emt 0:00:06]} Rxc4 {[%emt 0:00:07]} 27. Bd5 {[%emt 0:01:31]} Rc5 {[%emt 0:01:16]} 28. Bb3 {[%emt 0:06:47]} Rc3 {[%emt 0:02:12]} 29. Bd5 {[%emt 0:02:15]} Bxa3 {[%emt 0:00:20]} 30. Rd1 {[%emt 0:01:22]} Kf8 {[%emt 0:00:54]} 31. Ba2 {[%emt 0:00:52]} Rc2 {[%emt 0:02:13]} 32. Bb3 {[%emt 0:00:15]} Rc3 {[%emt 0:00:17]} 33. Ba4 {[%emt 0:01:04]} g5 {[%emt 0:07:02]} 34. Rd8+ {[%emt 0:01:03]} Kg7 {[%emt 0:00:07]} 35. Rd7 {[%emt 0:00:07]} Kg6 {[%emt 0:01:39]} 36. Rxa7 {[%emt 0:00:59]} Bc5 {[%emt 0:00:22]} 37. Be8 {[%emt 0:00:30]} Rf3 {[%emt 0:00:41]} 38. Ra2 {[%emt 0:01:26]} Kg7 {[%emt 0:01:21]} 39. Kg2 {[%emt 0:00:31]} Rf5 {[%emt 0:01:10]} 40. Re2 {[%emt 0:00:09]} Bd4 {[%emt 0:00:08]} 41. Rd2 {[%emt 0:31:51]} Rxe5 {[%emt 0:33:00]} 42. Bxf7 {[%emt 0:00:42]} Kxf7 {[%emt 0:00:00]} 43. Rxd4 {[%emt 0:00:00]} Ke6 {[%emt 0:00:00]} 44. Kf3 {[%emt 0:00:00]} Rd5 {[%emt 0:00:00]} 45. Rb4 {[%emt 0:00:00]} b5 {[%emt 0:00:00]} 46. h4 {[%emt 0:00:00]} Kd6 {[%emt 0:00:00]} 47. hxg5 {[%emt 0:00:00]} Rxg5 {[%emt 0:00:00]} 48. Kf4 {[%emt 0:00:00]} Rd5 {[%emt 0:00:00]} 49. Ke4 {[%emt 0:00:00]} Rg5 {[%emt 0:00:00]} 50. f4 {[%emt 0:00:00]} Rc5 {[%emt 0:00:00]} 51. g4 {[%emt 0:00:00]} h5 {[%emt 0:00:00]} 52. gxh5 {[%emt 0:00:00]} Rxh5 {[%emt 0:00:00]} 53. Kd4 {[%emt 0:00:00]} Rd5+ {[%emt 0:00:00]} 54. Kc3 {[%emt 0:00:00]} Kc5 {[%emt 0:00:00]} 55. Re4 {[%emt 0:00:00]} 1/2-1/2

[Event "44th Chess Olympiad Women 2022"]
[Site "Chennai"]
[Date "2022.08.09"]
[Round "11.29"]
[White "Newrkla, Katharina"]
[Black "Milovic, Aleksandra"]
[Result "1-0"]
[ECO "B90"]
[WhiteElo "2265"]
[BlackElo "2129"]
[Annotator "RC"]
[PlyCount "105"]
[EventDate "2022.07.29"]
[EventType "team-tourn"]
[EventCountry "IND"]
[SourceTitle "playchess.com"]
[Source "ChessBase"]
[SourceQuality "1"]
[WhiteTeam "Austria"]
[BlackTeam "Montenegro"]
[WhiteTeamCountry "AUT"]
[BlackTeamCountry "MNE"]
[TimeControl "40/5400+30:1800+30"]

1. e4 {[%emt 0:00:03]} c5 {[%emt 0:00:07]} 2. Nf3 {[%emt 0:00:04]} d6 {[%emt 0:00:08]} 3. d4 {[%emt 0:00:05]} cxd4 {[%emt 0:00:06]} 4. Nxd4 {[%emt 0:00:04]} Nf6 {[%emt 0:00:05]} 5. Nc3 {[%emt 0:00:05]} a6 {[%emt 0:00:06]} 6. f3 {[%emt 0:00:42]} b5 {[%emt 0:06:01]} 7. Be3 {[%emt 0:05:34]} Bb7 {[%emt 0:02:05]} 8. a3 {[%emt 0:10:36]} Nc6 {[%emt 0:05:06]} 9. Qd2 {[%emt 0:03:20]} Qc7 {[%emt 0:14:42]} 10. Bd3 {[%emt 0:16:21]} Ne5 {[%emt 0:11:09]} 11. O-O-O {[%emt 0:07:31]} Nc4 {[%emt 0:06:10]} 12. Bxc4 {[%emt 0:00:12]} Qxc4 {[%emt 0:00:04]} 13. g4 {[%emt 0:09:15]} e6 {[%emt 0:02:38]} 14. Nb3 {[%emt 0:03:21]} a5 {[%emt 0:09:48]} 15. Qd4 {[%emt 0:06:19]} Qxd4 {[%emt 0:05:23]} 16. Nxd4 {[%emt 0:00:20]} b4 {[%emt 0:03:09]} 17. Ncb5 {[%emt 0:01:19]} O-O-O {[%emt 0:08:00]} 18. a4 {[%emt 0:02:02]} d5 {[%emt 0:04:46]} 19. e5 {[%emt 0:05:19]} Ne8 {[%emt 0:00:54]} 20. Nb3 {[%emt 0:07:28]} f6 {[%emt 0:04:38]} 21. Nxa5 {[%emt 0:05:28]} fxe5 {[%emt 0:02:09]} 22. Bb6 {[%emt 0:00:33]} Rd7 {[%emt 0:02:03]} 23. Na7+ {[%emt 0:00:24]} Kb8 {[%emt 0:00:05]} 24. N7c6+ {[%emt 0:00:23]} Bxc6 {[%emt 0:01:04]} 25. Nxc6+ {[%emt 0:00:05]} Kc8 {[%emt 0:02:15]} 26. Nxe5 {[%emt 0:00:12]} Rb7 {[%emt 0:00:37]} 27. Bd4 {[%emt 0:02:04]} Nd6 {[%emt 0:04:28]} 28. b3 {[%emt 0:01:08]} Nf7 {[%emt 0:01:18]} 29. Rhe1 {[%emt 0:01:14]} Nd8 {[%emt 0:00:37]} 30. Kb2 {[%emt 0:03:38]} Bd6 {[%emt 0:02:03]} 31. a5 {[%emt 0:01:06]} Bb8 {[%emt 0:01:51]} 32. a6 {[%emt 0:01:04]} Rc7 {[%emt 0:00:44]} 33. Bb6 {[%emt 0:03:14]} Ba7 {[%emt 0:00:06]} 34. Bxc7 {[%emt 0:01:21]} Kxc7 {[%emt 0:00:05]} 35. c4 {[%emt 0:02:48]} bxc3+ {[%emt 0:00:50]} 36. Kxc3 {[%emt 0:00:06]} Kb6 {[%emt 0:00:12]} 37. Ra1 {[%emt 0:00:56]} Kb5 {[%emt 0:00:06]} 38. Kd3 {[%emt 0:01:03]} Re8 {[%emt 0:00:41]} 39. Rec1 {[%emt 0:01:25]} Re7 {[%emt 0:00:06]} 40. Rc8 {[%emt 0:00:55]} Nf7 {[%emt 0:01:48]} 41. Nxf7 {[%emt 0:30:48]} Rxf7 {[%emt 0:30:15]} 42. Ke2 {[%emt 0:00:36]} e5 {[%emt 0:00:00]} 43. Rd8 {[%emt 0:00:00]} d4 {[%emt 0:00:00]} 44. Rd5+ {[%emt 0:00:00]} Kb4 {[%emt 0:00:00]} 45. Rxe5 {[%emt 0:00:00]} Kxb3 {[%emt 0:00:00]} 46. Rc1 {[%emt 0:00:00]} Kb4 {[%emt 0:00:00]} 47. Rc8 {[%emt 0:00:00]} g6 {[%emt 0:00:00]} 48. g5 {[%emt 0:00:00]} Rd7 {[%emt 0:00:00]} 49. Kd3 {[%emt 0:00:00]} Rf7 {[%emt 0:00:00]} 50. Rc4+ {[%emt 0:00:00]} Ka3 {[%emt 0:00:00]} 51. Ra5+ {[%emt 0:00:00]} Kb3 {[%emt 0:00:00]} 52. Rb5+ {[%emt 0:00:00]} Ka3 {[%emt 0:00:00]} 53. Ke4 {[%emt 0:04:40]} 1-0

[Event "44th Chess Olympiad Women 2022"]
[Site "Chennai"]
[Date "2022.08.09"]
[Round "11.29"]
[White "Mayrhuber, Nikola"]
[Black "Bacic, Kristina"]
[Result "1-0"]
[ECO "D15"]
[WhiteElo "2141"]
[BlackElo "1866"]
[Annotator "NA RC"]
[PlyCount "45"]
[EventDate "2022.07.29"]
[EventType "team-tourn"]
[EventCountry "IND"]
[SourceTitle "playchess.com"]
[Source "ChessBase"]
[SourceQuality "1"]
[WhiteTeam "Austria"]
[BlackTeam "Montenegro"]
[WhiteTeamCountry "AUT"]
[BlackTeamCountry "MNE"]
[TimeControl "40/5400+30:1800+30"]

1. d4 {[%emt 0:00:05]} d5 {[%emt 0:00:12]} 2. c4 {[%emt 0:00:05]} c6 {[%emt 0:00:06]} 3. Nf3 {[%emt 0:00:05]} Nf6 {[%emt 0:00:12]} 4. Nc3 {[%emt 0:00:15]} dxc4 {[%emt 0:00:10]} 5. g3 {[%emt 0:00:08]} Bf5 {[%emt 0:00:33]} 6. Bg2 {[%emt 0:01:02]} e6 {[%emt 0:00:23]} 7. Ne5 {[%emt 0:02:05]} Nbd7 {[%emt 0:01:58]} 8. Nxc4 {[%emt 0:00:59]} Be7 {[%emt 0:01:32]} 9. a4 {[%emt 0:01:29]} Nb6 {[%emt 0:03:44]} 10. Ne5 {[%emt 0:03:57]} Nbd5 {[%emt 0:06:26]} 11. O-O {[%emt 0:02:58]} O-O {[%emt 0:05:01]} 12. Re1 {[%emt 0:09:55]} Nxc3 {[%emt 0:13:26]} 13. bxc3 {[%emt 0:00:13]} Ne4 {[%emt 0:04:47]} 14. Bb2 {[%emt 0:10:32]} f6 {[%emt 0:04:32]} 15. Nd3 {[%emt 0:02:05]} Qc7 {[%emt 0:13:13]} 16. f3 {[%emt 0:06:37]} Ng5 {[%emt 0:10:27]} 17. e4 {[%emt 0:04:48]} Bh3 {[%emt 0:05:12]} 18. Qb3 {[%emt 0:15:20]} Bxg2 {[%emt 0:01:13]} 19. Kxg2 {[%emt 0:00:06]} Qd7 {[%emt 0:08:06]} 20. Nf4 {[%emt 0:01:38]} Kh8 {[%emt 0:01:17]} 21. h4 {[%emt 0:03:19]} e5 {[%emt 0:00:08]} 22. Ng6+ {[%emt 0:03:12]} hxg6 {[%emt 0:02:01]} 23. hxg5 {[%emt 0:00:06]} 1-0

[Event "44th Chess Olympiad Women 2022"]
[Site "Chennai"]
[Date "2022.08.09"]
[Round "11.29"]
[White "Koljevic, Nikolina"]
[Black "Polterauer, Chiara"]
[Result "0-1"]
[ECO "C49"]
[WhiteElo "2014"]
[BlackElo "2183"]
[Annotator "RC"]
[PlyCount "100"]
[EventDate "2022.07.29"]
[EventType "team-tourn"]
[EventCountry "IND"]
[SourceTitle "playchess.com"]
[Source "ChessBase"]
[SourceQuality "1"]
[WhiteTeam "Montenegro"]
[BlackTeam "Austria"]
[WhiteTeamCountry "MNE"]
[BlackTeamCountry "AUT"]
[TimeControl "40/5400+30:1800+30"]

1. e4 {[%emt 0:00:02]} e5 {[%emt 0:00:07]} 2. Nf3 {[%emt 0:00:08]} Nc6 {[%emt 0:00:05]} 3. Nc3 {[%emt 0:00:16]} Nf6 {[%emt 0:00:10]} 4. Bb5 {[%emt 0:00:05]} Bb4 {[%emt 0:00:14]} 5. Nd5 {[%emt 0:01:48]} Bd6 {[%emt 0:13:02]} 6. d3 {[%emt 0:02:08]} Nxd5 {[%emt 0:10:54]} 7. exd5 {[%emt 0:00:08]} Nd4 {[%emt 0:00:11]} 8. Nxd4 {[%emt 0:05:57]} exd4 {[%emt 0:00:06]} 9. Qg4 {[%emt 0:00:40]} Qe7+ {[%emt 0:06:08]} 10. Qe4 {[%emt 0:00:17]} O-O {[%emt 0:01:30]} 11. Qxe7 {[%emt 0:07:48]} Bxe7 {[%emt 0:00:04]} 12. Bf4 {[%emt 0:00:53]} d6 {[%emt 0:00:38]} 13. Kd2 {[%emt 0:06:38]} a6 {[%emt 0:04:23]} 14. Ba4 {[%emt 0:00:28]} b5 {[%emt 0:00:37]} 15. Bb3 {[%emt 0:00:03]} Bd7 {[%emt 0:00:16]} 16. Rhe1 {[%emt 0:00:53]} Bf6 {[%emt 0:00:43]} 17. h3 {[%emt 0:03:51]} h5 {[%emt 0:02:44]} 18. a4 {[%emt 0:04:20]} h4 {[%emt 0:02:31]} 19. Bh2 {[%emt 0:05:47]} Rfb8 {[%emt 0:10:58]} 20. Reb1 {[%emt 0:02:36]} Re8 {[%emt 0:03:52]} 21. Re1 {[%emt 0:03:49]} Reb8 {[%emt 0:02:54]} 22. Reb1 {[%emt 0:00:10]} g6 {[%emt 0:00:11]} 23. Ra2 {[%emt 0:00:22]} Kg7 {[%emt 0:07:58]} 24. axb5 {[%emt 0:06:27]} axb5 {[%emt 0:06:49]} 25. Rba1 {[%emt 0:00:17]} Rxa2 {[%emt 0:00:04]} 26. Rxa2 {[%emt 0:00:05]} Rc8 {[%emt 0:03:21]} 27. Ra7 {[%emt 0:02:00]} Be8 {[%emt 0:00:46]} 28. Ke2 {[%emt 0:02:52]} Kf8 {[%emt 0:00:40]} 29. Bf4 {[%emt 0:04:00]} Ke7 {[%emt 0:01:02]} 30. Bd2 {[%emt 0:03:52]} Bd7 {[%emt 0:01:26]} 31. Ba5 {[%emt 0:03:15]} Kd8 {[%emt 0:00:26]} 32. Kf3 {[%emt 0:05:33]} Bf5 {[%emt 0:05:14]} 33. g4 {[%emt 0:11:18]} hxg3 {[%emt 0:00:38]} 34. fxg3 {[%emt 0:00:45]} Bxh3 {[%emt 0:02:45]} 35. g4 {[%emt 0:00:06]} Be5 {[%emt 0:00:11]} 36. Rb7 {[%emt 0:02:32]} f5 {[%emt 0:00:19]} 37. gxf5 {[%emt 0:00:13]} Bxf5 {[%emt 0:00:15]} 38. Rxb5 {[%emt 0:01:29]} Ra8 {[%emt 0:03:45]} 39. Bd2 {[%emt 0:03:23]} Bf6 {[%emt 0:00:34]} 40. Bc4 {[%emt 0:02:42]} g5 {[%emt 0:06:05]} 41. b4 {[%emt 0:32:48]} Ke7 {[%emt 0:18:24]} 42. Ra5 {[%emt 0:00:00]} Rh8 {[%emt 0:00:41]} 43. Ra7 {[%emt 0:00:00]} Kf7 {[%emt 0:00:19]} 44. Rxc7+ {[%emt 0:00:00]} Kg6 {[%emt 0:00:04]} 45. Kg2 {[%emt 0:00:00]} Be5 {[%emt 0:01:09]} 46. Kg1 {[%emt 0:00:00]} Rh2 {[%emt 0:03:22]} 47. b5 {[%emt 0:00:00]} Rxd2 {[%emt 0:01:09]} 48. b6 {[%emt 0:00:00]} Bh3 {[%emt 0:03:58]} 49. Ra7 {[%emt 0:00:00]} Rxc2 {[%emt 0:00:00]} 50. Bb5 {[%emt 0:00:00]} Bg3 {[%emt 0:01:01]} 0-1

[Event "44th Chess Olympiad Women 2022"]
[Site "Chennai"]
[Date "2022.08.09"]
[Round "11.29"]
[White "Popovic, Mateja"]
[Black "Hapala, Elisabeth"]
[Result "1/2-1/2"]
[ECO "E16"]
[WhiteElo "1634"]
[BlackElo "2113"]
[Annotator "NA RC"]
[PlyCount "73"]
[EventDate "2022.07.29"]
[EventType "team-tourn"]
[EventCountry "IND"]
[SourceTitle "playchess.com"]
[Source "ChessBase"]
[SourceQuality "1"]
[WhiteTeam "Montenegro"]
[BlackTeam "Austria"]
[WhiteTeamCountry "MNE"]
[BlackTeamCountry "AUT"]
[TimeControl "40/5400+30:1800+30"]

1. d4 {[%emt 0:00:13]} Nf6 {[%emt 0:00:04]} 2. c4 {[%emt 0:00:29]} e6 {[%emt 0:00:13]} 3. g3 {[%emt 0:00:14]} Bb4+ {[%emt 0:00:27]} 4. Bd2 {[%emt 0:00:18]} a5 {[%emt 0:00:28]} 5. Bg2 {[%emt 0:00:22]} O-O {[%emt 0:00:12]} 6. Nf3 {[%emt 0:01:36]} b6 {[%emt 0:00:34]} 7. O-O {[%emt 0:04:40]} Bb7 {[%emt 0:00:18]} 8. b3 {[%emt 0:00:48]} Qc8 {[%emt 0:17:09]} 9. a3 {[%emt 0:05:38]} Bxd2 {[%emt 0:00:52]} 10. Nbxd2 {[%emt 0:00:19]} d6 {[%emt 0:06:55]} 11. Qc2 {[%emt 0:04:41]} Nbd7 {[%emt 0:09:17]} 12. e4 {[%emt 0:03:50]} e5 {[%emt 0:01:33]} 13. d5 {[%emt 0:07:51]} c6 {[%emt 0:08:40]} 14. Rfc1 {[%emt 0:08:26]} Qb8 {[%emt 0:09:48]} 15. dxc6 {[%emt 0:22:33]} Bxc6 {[%emt 0:00:07]} 16. Ne1 {[%emt 0:00:52]} Nc5 {[%emt 0:10:49]} 17. b4 {[%emt 0:02:46]} axb4 {[%emt 0:00:21]} 18. axb4 {[%emt 0:00:07]} Ne6 {[%emt 0:00:11]} 19. b5 {[%emt 0:04:00]} Bb7 {[%emt 0:02:59]} 20. Nb3 {[%emt 0:00:51]} Qc7 {[%emt 0:00:33]} 21. f3 {[%emt 0:02:10]} Rfc8 {[%emt 0:02:35]} 22. Rxa8 {[%emt 0:01:49]} Rxa8 {[%emt 0:00:09]} 23. Nd3 {[%emt 0:00:31]} Nd7 {[%emt 0:11:25]} 24. Bh3 {[%emt 0:04:10]} Ndc5 {[%emt 0:01:51]} 25. Bxe6 {[%emt 0:00:55]} Nxe6 {[%emt 0:00:13]} 26. Nb4 {[%emt 0:04:24]} Nc5 {[%emt 0:06:09]} 27. Nd5 {[%emt 0:01:54]} Bxd5 {[%emt 0:01:19]} 28. cxd5 {[%emt 0:00:58]} Ra3 {[%emt 0:02:46]} 29. Qb2 {[%emt 0:04:15]} Ra4 {[%emt 0:01:53]} 30. Nxc5 {[%emt 0:01:06]} dxc5 {[%emt 0:00:01]} 31. Ra1 {[%emt 0:00:37]} Rxa1+ {[%emt 0:04:11]} 32. Qxa1 {[%emt 0:00:08]} Kf8 {[%emt 0:01:58]} 33. Qa8+ {[%emt 0:01:50]} Ke7 {[%emt 0:00:00]} 34. Qc6 {[%emt 0:00:28]} Qd6 {[%emt 0:00:45]} 35. Kf2 {[%emt 0:02:12]} h6 {[%emt 0:00:38]} 36. h4 {[%emt 0:01:08]} Qxc6 {[%emt 0:00:23]} 37. dxc6 {[%emt 0:00:09]} 1/2-1/2

[Event "44th Chess Olympiad Women 2022"]
[Site "Chennai"]
[Date "2022.08.09"]
[Round "11.30"]
[White "Okuyaz, Duru"]
[Black "Samaganova, Alexandra"]
[Result "1-0"]
[ECO "B41"]
[WhiteElo "2090"]
[BlackElo "1864"]
[Annotator "NA RC"]
[PlyCount "87"]
[EventDate "2022.07.29"]
[EventType "team-tourn"]
[EventCountry "IND"]
[SourceTitle "playchess.com"]
[Source "ChessBase"]
[SourceQuality "1"]
[WhiteTeam "Turkey"]
[BlackTeam "Kyrgyzstan"]
[WhiteTeamCountry "TUR"]
[BlackTeamCountry "KGZ"]
[TimeControl "40/5400+30:1800+30"]

1. e4 {[%emt 0:00:03]} c5 {[%emt 0:00:06]} 2. Nf3 {[%emt 0:00:04]} e6 {[%emt 0:00:09]} 3. d4 {[%emt 0:00:05]} cxd4 {[%emt 0:00:00]} 4. Nxd4 {[%emt 0:00:05]} a6 {[%emt 0:00:03]} 5. c4 {[%emt 0:00:09]} Qc7 {[%emt 0:00:09]} 6. Nc3 {[%emt 0:00:17]} Nf6 {[%emt 0:00:20]} 7. Be2 {[%emt 0:00:08]} b6 {[%emt 0:01:21]} 8. O-O {[%emt 0:01:55]} Bb7 {[%emt 0:00:19]} 9. Qd3 {[%emt 0:04:53]} d6 {[%emt 0:02:35]} 10. f4 {[%emt 0:03:02]} Nbd7 {[%emt 0:00:44]} 11. Qe3 {[%emt 0:03:30]} Be7 {[%emt 0:08:41]} 12. Bd2 {[%emt 0:02:50]} Rc8 {[%emt 0:04:53]} 13. Rac1 {[%emt 0:00:50]} Qb8 {[%emt 0:13:19]} 14. b4 {[%emt 0:06:14]} O-O {[%emt 0:03:43]} 15. h3 {[%emt 0:13:09]} Rfe8 {[%emt 0:04:20]} 16. g4 {[%emt 0:05:16]} d5 {[%emt 0:07:40]} 17. e5 {[%emt 0:02:32]} Ne4 {[%emt 0:01:01]} 18. Nxe4 {[%emt 0:00:23]} dxe4 {[%emt 0:00:02]} 19. g5 {[%emt 0:09:03]} Nf8 {[%emt 0:11:41]} 20. h4 {[%emt 0:01:01]} Red8 {[%emt 0:07:50]} 21. h5 {[%emt 0:02:08]} Rd7 {[%emt 0:02:26]} 22. Bc3 {[%emt 0:01:05]} Rcd8 {[%emt 0:04:25]} 23. a3 {[%emt 0:08:11]} a5 {[%emt 0:06:50]} 24. f5 {[%emt 0:07:35]} axb4 {[%emt 0:07:12]} 25. axb4 {[%emt 0:00:07]} exf5 {[%emt 0:04:04]} 26. Nxf5 {[%emt 0:00:13]} Ne6 {[%emt 0:01:05]} 27. Nxe7+ {[%emt 0:00:19]} Rxe7 {[%emt 0:00:02]} 28. Qxb6 {[%emt 0:03:57]} Nxg5 {[%emt 0:01:02]} 29. Rcd1 {[%emt 0:08:53]} Rde8 {[%emt 0:01:11]} 30. Qe3 {[%emt 0:00:18]} h6 {[%emt 0:00:49]} 31. Rd6 {[%emt 0:10:06]} Qc8 {[%emt 0:01:33]} 32. Kh2 {[%emt 0:00:53]} Qb8 {[%emt 0:05:34]} 33. c5 {[%emt 0:00:40]} Bc8 {[%emt 0:00:35]} 34. b5 {[%emt 0:01:38]} Be6 {[%emt 0:01:09]} 35. b6 {[%emt 0:00:40]} Rc8 {[%emt 0:00:29]} 36. c6 {[%emt 0:00:35]} Nf3+ {[%emt 0:00:34]} 37. Bxf3 {[%emt 0:00:49]} exf3 {[%emt 0:00:03]} 38. b7 {[%emt 0:01:39]} Rce8 {[%emt 0:00:36]} 39. Qxf3 {[%emt 0:01:36]} Qa7 {[%emt 0:00:42]} 40. Bd4 {[%emt 0:00:54]} Qa2+ {[%emt 0:00:37]} 41. Rf2 {[%emt 0:31:15]} Qa4 {[%emt 0:01:00]} 42. Rg2 {[%emt 0:00:00]} Qb5 {[%emt 0:05:37]} 43. Qg3 {[%emt 0:00:00]} f5 {[%emt 0:01:05]} 44. Rxe6 {[%emt 0:00:00]} 1-0